[Event "GER-ch Youth-U18w 2022"]
[Site "Willingen"]
[Date "2022.06.05"]
[Round "2.3"]
[White "Falke, Ornella"]
[Black "Dartmann Aubanell, Catriona"]
[Result "1-0"]
[ECO "C11"]
[WhiteElo "1844"]
[BlackElo "1874"]
[Annotator "NA RC COMBH"]
[PlyCount "81"]
[EventDate "2022.06.05"]
[EventType "swiss"]
[EventRounds "9"]
[EventCountry "GER"]
[SourceTitle "playchess.com"]
[Source "ChessBase"]
[SourceQuality "1"]
[TimeControl "40/4500+30:900+30"]

1. e4 {[%emt 0:00:00]} e6 {[%emt 0:00:00]} 2. d4 {[%emt 0:00:00]} d5 {[%emt 0:00:00]} 3. Nc3 {[%emt 0:00:00]} Nf6 {[%emt 0:00:00]} 4. e5 {[%emt 0:00:00]} Nfd7 {[%emt 0:00:00]} 5. f4 {[%emt 0:00:00]} c5 {[%emt 0:00:00]} 6. Nf3 {[%emt 0:00:00]} Nc6 {[%emt 0:00:00]} 7. Be3 {[%emt 0:00:00]} Be7 {[%emt 0:00:00]} 8. Qd2 {[%emt 0:00:00]} a6 {[%emt 0:00:00]} 9. dxc5 {[%emt 0:00:00]} Nxc5 {[%emt 0:00:00]} 10. h4 {[%emt 0:00:00]} b5 {[%emt 0:01:01]} 11. a3 {[%emt 0:00:00]} Bd7 {[%emt 0:15:04]} 12. h5 {[%emt 0:00:00]} Na7 {[%emt 0:04:35]} 13. Qf2 {[%emt 0:00:00]} Qc7 {[%emt 0:02:32]} 14. Be2 {[%emt 0:06:33]} a5 {[%emt 0:10:28]} 15. Bd3 {[%emt 0:15:22]} b4 {[%emt 0:07:37]} 16. axb4 {[%emt 0:00:18]} Nxd3+ {[%emt 0:02:54]} 17. cxd3 {[%emt 0:00:05]} Bxb4 {[%emt 0:00:08]} 18. O-O {[%emt 0:00:38]} Nb5 {[%emt 0:04:59]} 19. Na4 {[%emt 0:01:59]} O-O {[%emt 0:03:12]} 20. Rfc1 {[%emt 0:03:09]} Qb7 {[%emt 0:01:38]} 21. h6 {[%emt 0:01:00]} g6 {[%emt 0:01:19]} 22. Qh4 {[%emt 0:01:35]} f5 {[%emt 0:07:47]} 23. exf6 {[%emt 0:00:41]} Nd6 {[%emt 0:01:35]} 24. Nc5 {[%emt 0:05:43]} Qa7 {[%emt 0:04:49]} 25. g4 {[%emt 0:08:24]} Rac8 {[%emt 0:02:52]} 26. d4 {[%emt 0:01:45]} Nc4 {[%emt 0:00:40]} 27. Bf2 {[%emt 0:06:33]} Nd2 {[%emt 0:07:46]} 28. Ne5 {[%emt 0:10:21]} Bxc5 {[%emt 0:03:41]} 29. dxc5 {[%emt 0:00:32]} Qc7 {[%emt 0:00:49]} 30. Ra3 {[%emt 0:01:13]} Be8 {[%emt 0:01:01]} 31. Bd4 {[%emt 0:01:49]} Nc4 {[%emt 0:01:34]} 32. Rg3 {[%emt 0:05:54]} Rb8 {[%emt 0:00:51]} 33. Rg2 {[%emt 0:03:04]} Bf7 {[%emt 0:01:09]} 34. g5 {[%emt 0:01:09]} Nxe5 {[%emt 0:01:29]} 35. Bxe5 {[%emt 0:00:20]} Qc6 {[%emt 0:00:28]} 36. Bxb8 Rxb8 {[%emt 0:00:02]} 37. Qg3 {[%emt 0:01:14]} Rb5 {[%emt 0:00:53]} 38. Qc3 {[%emt 0:00:18]} Rb4 {[%emt 0:00:46]} 39. Qe5 {[%emt 0:02:26]} Re4 {[%emt 0:00:47]} 40. Qd6 {[%emt 0:01:07]} Qa4 {[%emt 0:00:30]} 41. c6 {[%emt 0:16:13]} 1-0

[Event "GER-ch Youth-U18w 2022"]
[Site "Willingen"]
[Date "2022.06.05"]
[Round "2.4"]
[White "Goetten Wagner, Julia"]
[Black "Dietz, Kristin"]
[Result "1-0"]
[ECO "B40"]
[WhiteElo "1631"]
[BlackElo "1707"]
[Annotator "NA RC COMBH"]
[PlyCount "89"]
[EventDate "2022.06.05"]
[EventType "swiss"]
[EventRounds "9"]
[EventCountry "GER"]
[SourceTitle "playchess.com"]
[Source "ChessBase"]
[SourceQuality "1"]
[TimeControl "40/4500+30:900+30"]

1. e4 {[%emt 0:00:00]} c5 {[%emt 0:00:00]} 2. Nf3 {[%emt 0:00:00]} e6 {[%emt 0:00:00]} 3. g3 {[%emt 0:00:00]} Nc6 {[%emt 0:00:00]} 4. Bg2 {[%emt 0:00:00]} g6 {[%emt 0:00:00]} 5. c3 {[%emt 0:00:00]} Bg7 {[%emt 0:00:00]} 6. d4 {[%emt 0:00:00]} d6 {[%emt 0:00:00]} 7. O-O {[%emt 0:00:00]} Nge7 {[%emt 0:00:00]} 8. d5 {[%emt 0:00:00]} exd5 {[%emt 0:05:57]} 9. exd5 {[%emt 0:00:00]} Ne5 {[%emt 0:00:49]} 10. Nxe5 {[%emt 0:00:00]} Bxe5 {[%emt 0:04:50]} 11. Bf4 {[%emt 0:04:54]} Bxf4 {[%emt 0:04:11]} 12. Qa4+ {[%emt 0:00:18]} b5 {[%emt 0:00:23]} 13. Qxf4 {[%emt 0:00:49]} Bb7 {[%emt 0:01:46]} 14. Qf6 {[%emt 0:11:42]} O-O {[%emt 0:00:53]} 15. Rd1 {[%emt 0:02:48]} Re8 {[%emt 0:05:23]} 16. Na3 {[%emt 0:05:14]} Qd7 {[%emt 0:06:43]} 17. c4 {[%emt 0:03:37]} bxc4 {[%emt 0:05:18]} 18. Nxc4 {[%emt 0:00:12]} Rad8 {[%emt 0:00:40]} 19. Ne3 {[%emt 0:02:50]} Nf5 {[%emt 0:07:25]} 20. Bh3 {[%emt 0:09:57]} Qe7 {[%emt 0:02:46]} 21. Ng4 {[%emt 0:01:23]} h5 {[%emt 0:15:29]} 22. Qxe7 {[%emt 0:01:48]} Rxe7 {[%emt 0:00:33]} 23. Nf6+ {[%emt 0:01:23]} Kg7 {[%emt 0:00:15]} 24. Nxh5+ {[%emt 0:02:31]} gxh5 {[%emt 0:00:53]} 25. Bxf5 {[%emt 0:00:07]} Re5 {[%emt 0:00:07]} 26. Bh3 {[%emt 0:06:45]} Bxd5 {[%emt 0:01:16]} 27. f4 {[%emt 0:05:50]} Re2 {[%emt 0:04:39]} 28. Rxd5 {[%emt 0:00:56]} Rxb2 {[%emt 0:00:09]} 29. Rxh5 {[%emt 0:11:35]} c4 {[%emt 0:01:35]} 30. Rg5+ {[%emt 0:01:49]} Kf6 {[%emt 0:01:03]} 31. Rd5 {[%emt 0:03:24]} c3 {[%emt 0:01:18]} 32. Rc1 {[%emt 0:02:16]} Rxa2 {[%emt 0:05:32]} 33. Rxc3 {[%emt 0:00:15]} a5 {[%emt 0:04:14]} 34. Rc6 {[%emt 0:03:29]} Ke7 {[%emt 0:00:10]} 35. Rc7+ {[%emt 0:00:10]} Kf6 {[%emt 0:01:57]} 36. Rf5+ {[%emt 0:00:12]} Kg6 {[%emt 0:00:05]} 37. Rcxf7 {[%emt 0:00:14]} Rh8 {[%emt 0:00:51]} 38. R5f6+ {[%emt 0:02:35]} Kh5 {[%emt 0:00:07]} 39. Rg7 {[%emt 0:01:01]} Ra1+ {[%emt 0:00:37]} 40. Kg2 {[%emt 0:00:18]} Ra2+ {[%emt 0:00:05]} 41. Kf3 {[%emt 0:15:23]} Ra3+ {[%emt 0:15:06]} 42. Ke2 {[%emt 0:01:16]} Re8+ {[%emt 0:00:13]} 43. Be6 {[%emt 0:00:26]} Ra2+ {[%emt 0:00:29]} 44. Kd3 {[%emt 0:00:24]} Ra3+ {[%emt 0:00:13]} 45. Kd2 {[%emt 0:00:15]} 1-0

[Event "GER-ch Youth-U18w 2022"]
[Site "Willingen"]
[Date "2022.06.05"]
[Round "2.5"]
[White "Basovskiy, Jana"]
[Black "Kroemer, Paulina"]
[Result "1/2-1/2"]
[ECO "B28"]
[WhiteElo "1938"]
[BlackElo "1583"]
[Annotator "TA"]
[PlyCount "89"]
[EventDate "2022.06.05"]
[EventType "swiss"]
[EventRounds "9"]
[EventCountry "GER"]
[SourceTitle "playchess.com"]
[Source "ChessBase"]
[SourceQuality "1"]
[TimeControl "40/4500+30:900+30"]

{[%evp 9,89,30,27,22,27,30,40,14,38,33,25,42,39,0,1,-12,-10,-8,0,-34,38,43,44,46,64,68,167,166,158,108,98,37,71,46,442,422,384,355,340,127,125,83,83,56,53,57,79,52,416,48,45,41,58,56,50,0,81,76,76,71,79,88,79,84,64,18,74,52,52,39,121,23,26,9,104,8,33,24,42,29,31,0]} 1. e4 {[%emt 0:00:00] Horn,Pe} c5 {[%emt 0:00:00]} 2. Nf3 {[%emt 0:00:00]} a6 {[%emt 0:00:00]} 3. g3 {[%emt 0:00:00]} b5 {[%emt 0:00:00]} 4. Bg2 {[%emt 0:00:00]} Bb7 {[%emt 0:00:00]} 5. d3 {[%emt 0:01:00]} e6 {[%emt 0:00:00]} 6. O-O {[%emt 0:02:25] B28: Sicilian: 2 Nf3 a6 (O'Kelly Variation).} Be7 {[%emt 0:00:13]} 7. Re1 {[%emt 0:04:59]} Nf6 {[%emt 0:03:49]} 8. Nbd2 {[%emt 0:13:03]} (8. e5 $5 {[%cal Re5f6]} Nd5 9. c4 $14) 8... O-O {[%emt 0:03:19]} 9. e5 $1 {[%emt 0:09:57]} Ne8 {[%emt 0:02:35]} 10. Ne4 {[%emt 0:02:47] [#]} d5 $146 {[%emt 0:11:24]} ({Predecessor:} 10... f5 11. exf6 Nxf6 12. Nfg5 Nc6 13. Nxf6+ gxf6 14. Nf3 Qc7 15. c3 Kh8 16. Bf4 Bd6 17. Bxd6 Qxd6 {0-1 (33) Cabrilo,G (2490)-Vukovic,Z (2395) Niksic 1991 CBM 024 [Horn,Pe]}) 11. Ned2 {[%emt 0:04:26][%cal Be4d2,Bd2f1,Bf1h2,Bh2g4][%mdl 32]} (11. exd6 $5 Bxd6 12. Bg5 $14) 11... Nc6 {[%emt 0:06:53]} 12. Nf1 {[%emt 0:00:55]} Nc7 {[%emt 0:02:11]} 13. h4 {[%emt 0:00:19][%cal Bh2h4,Bh4h5,Bh5h6][%mdl 32]} d4 {[%emt 0:06:59]} 14. h5 {[%emt 0:00:15]} Nd5 {[%emt 0:04:18]} (14... h6 $1 $15) 15. h6 $14 {[%emt 0:00:36]} g6 {[%emt 0:00:11]} 16. N1h2 {[%emt 0:00:43]} Qc7 {[%emt 0:04:21]} 17. Ng4 {[%emt 0:00:47]} f5 {[%emt 0:06:32]} (17... Nb8 $14) 18. exf6 $1 $18 {[%emt 0:04:13]} Nxf6 {[%emt 0:02:20]} 19. Bf4 {[%emt 0:08:30]} (19. Ng5 $142) 19... Qc8 $16 {[%emt 0:07:13]} 20. Ng5 {[%emt 0:05:10] White is more active.} (20. Nxf6+ $16 Bxf6 21. Bd6) 20... Nxg4 $14 {[%emt 0:04:01]} 21. Qxg4 {[%emt 0:00:09]} e5 {[%emt 0:05:47][%mdl 8192]} (21... Bxg5 $14 22. Qxg5 (22. Bxg5 Rf5 $14) 22... Rf5) 22. Qxc8 $18 {[%emt 0:04:36]} Raxc8 {[%emt 0:00:06]} 23. Bd5+ {[%emt 0:03:07]} Kh8 {[%emt 0:00:56]} 24. Bxc6 $2 {[%emt 0:04:46]} (24. Rxe5 $18 {and White stays clearly on top.} Bf6 25. Re6 Bxg5 26. Bxg5) 24... Bxc6 $16 {[%emt 0:00:41]} 25. Bxe5+ {[%emt 0:00:04]} Kg8 {[%emt 0:02:05]} 26. Bf4 {[%emt 0:01:57]} Bxg5 {[%emt 0:05:54]} 27. Bxg5 {[%emt 0:00:06]} Bf3 {[%emt 0:01:05]} 28. Re7 {[%emt 0:08:59]} (28. Re5 $5 {[%cal Ra1e1]}) 28... Rf5 $2 {[%emt 0:00:57][%mdl 8192] [#]} (28... Rce8 $14) 29. Bh4 $2 {[%emt 0:00:16]} (29. Rg7+ $1 $18 Kf8 30. Be7+ (30. Rxh7 $2 Rxg5 31. g4 Rxg4+ 32. Kh2 Kg8 $19) 30... Ke8 31. Re1) 29... Rh5 $14 {[%emt 0:00:54]} 30. Rg7+ {[%emt 0:00:50]} Kh8 {[%emt 0:00:10]} 31. Re1 {[%emt 0:00:29][%cal Og7c7] White threatens Rc7! and mate.} Rxh6 {[%emt 0:00:30]} 32. Ree7 $40 {[%emt 0:00:37][%mdl 128] White has some attack.} (32. Rf7 $1 $14 g5 33. Rxf3 gxh4 34. gxh4) 32... Rg8 {[%emt 0:00:50]} (32... Rf8 $11) 33. Rgf7 $16 {[%emt 0:01:18] [#] Threatening mate with Bf6+.} g5 {[%emt 0:01:10] Strongly threatening ...Bd5.} 34. Rxf3 {[%emt 0:00:42][%cal Oh4g5] Bxg5! is the strong threat.} gxh4 {[%emt 0:00:03][%mdl 4096] Endgame KRR-KRR} 35. Kg2 {[%emt 0:00:32]} hxg3 {[%emt 0:01:21]} 36. fxg3 {[%emt 0:00:07]} Rhg6 {[%emt 0:00:05]} 37. Kf2 {[%emt 0:00:41]} (37. a3 $14) 37... R6g7 {[%emt 0:02:00]} (37... Rh6 $1 $11 {keeps the balance.}) 38. Rff7 {[%emt 0:00:52]} Rxf7+ {[%emt 0:00:43]} 39. Rxf7 $14 {[%emt 0:00:02] KR-KR} Re8 {[%emt 0:00:16]} ({Black should try} 39... c4 $1 $14) 40. Rf5 {[%emt 0:02:17]} (40. Rf6 $16) 40... c4 $11 {[%emt 0:00:45]} 41. Rd5 {[%emt 0:00:00]} Rc8 {[%emt 0:00:00]} (41... Rf8+ $11 42. Ke2 cxd3+ 43. cxd3 (43. Kxd3 Rf3+ 44. Kxd4 Rxg3 $14) 43... Re8+ 44. Kf2 Rf8+ 45. Kg2 Re8) 42. Ke2 {[%emt 0:00:20]} ({White should play} 42. Rxd4 $16 {Threatening dxc4.} cxd3 43. c3 (43. cxd3 Rc2+ 44. Kf3 Rxb2 $11)) 42... c3 {[%emt 0:00:00]} 43. b3 {[%emt 0:00:09]} Re8+ {[%emt 0:00:00]} 44. Kf2 {[%emt 0:00:12]} Rf8+ {[%emt 0:00:00]} 45. Ke2 {[%emt 0:01:28] Weighted Error Value: White=0.47/Black=0.59} 1/2-1/2

[Event "GER-ch Youth-U18w 2022"]
[Site "Willingen"]
[Date "2022.06.05"]
[Round "2.6"]
[White "Orlova, Alicia"]
[Black "Berghold, Lotta"]
[Result "1-0"]
[ECO "C00"]
[WhiteElo "1724"]
[BlackElo "1482"]
[Annotator "NA RC COMBH"]
[PlyCount "73"]
[EventDate "2022.06.05"]
[EventType "swiss"]
[EventRounds "9"]
[EventCountry "GER"]
[SourceTitle "playchess.com"]
[Source "ChessBase"]
[SourceQuality "1"]
[TimeControl "40/4500+30:900+30"]

1. e4 {[%emt 0:00:00]} e6 {[%emt 0:00:00]} 2. d4 {[%emt 0:00:00]} d5 {[%emt 0:00:00]} 3. Bd3 {[%emt 0:00:00]} dxe4 {[%emt 0:00:00]} 4. Bxe4 {[%emt 0:00:00]} Nf6 {[%emt 0:00:00]} 5. Bf3 {[%emt 0:00:00]} Be7 {[%emt 0:00:00]} 6. Ne2 {[%emt 0:00:00]} O-O {[%emt 0:00:00]} 7. O-O {[%emt 0:00:00]} c5 {[%emt 0:00:00]} 8. c4 {[%emt 0:00:00]} Qc7 {[%emt 0:07:24]} 9. Bf4 {[%emt 0:00:00]} Bd6 {[%emt 0:01:14]} 10. Bxd6 {[%emt 0:00:00]} Qxd6 {[%emt 0:00:05]} 11. Nbc3 {[%emt 0:00:00]} a6 {[%emt 0:01:58]} 12. Na4 {[%emt 0:04:35]} cxd4 {[%emt 0:02:09]} 13. Qxd4 {[%emt 0:05:16]} Qxd4 {[%emt 0:01:18]} 14. Nxd4 {[%emt 0:00:06]} Nbd7 {[%emt 0:01:10]} 15. Rfe1 {[%emt 0:02:33]} g6 {[%emt 0:06:59]} 16. Rac1 {[%emt 0:02:56]} Rb8 {[%emt 0:03:19]} 17. b4 {[%emt 0:06:22]} e5 {[%emt 0:05:22]} 18. Nb3 {[%emt 0:01:00]} b6 {[%emt 0:03:13]} 19. c5 {[%emt 0:03:20]} bxc5 {[%emt 0:02:23]} 20. bxc5 {[%emt 0:00:31]} Rb4 {[%emt 0:01:32]} 21. Nc3 {[%emt 0:01:00]} Re8 {[%emt 0:04:02]} 22. Nd5 {[%emt 0:02:18]} Nxd5 {[%emt 0:07:43]} 23. Bxd5 {[%emt 0:00:10]} Nf6 {[%emt 0:00:51]} 24. Bc4 {[%emt 0:02:53]} Ra4 {[%emt 0:10:14]} 25. Nd2 {[%emt 0:03:17]} Bb7 {[%emt 0:02:09]} 26. Bb3 {[%emt 0:00:50]} Rd4 {[%emt 0:01:00]} 27. c6 {[%emt 0:01:47]} Rxd2 {[%emt 0:01:09]} 28. cxb7 {[%emt 0:00:47]} Rdd8 {[%emt 0:05:55]} 29. Rc7 {[%emt 0:03:49]} Rf8 {[%emt 0:10:07]} 30. Rec1 {[%emt 0:01:09]} Rb8 {[%emt 0:00:52]} 31. Rxf7 {[%emt 0:02:19]} Rxf7 {[%emt 0:02:03]} 32. Rc8+ {[%emt 0:03:51]} Kg7 {[%emt 0:00:26]} 33. Rxb8 {[%emt 0:00:17]} Rc7 {[%emt 0:01:04]} 34. Kf1 {[%emt 0:00:45]} Re7 {[%emt 0:06:01]} 35. Rg8+ {[%emt 0:00:50]} Nxg8 {[%emt 0:00:06]} 36. b8=Q {[%emt 0:00:10]} Nf6 {[%emt 0:00:20]} 37. Qd6 {[%emt 0:00:45]} 1-0

[Event "GER-ch Youth-U18w 2022"]
[Site "Willingen"]
[Date "2022.06.05"]
[Round "2.7"]
[White "Heutling, Elina"]
[Black "Kosak, Karolina"]
[Result "1-0"]
[ECO "C77"]
[WhiteElo "1798"]
[BlackElo "1471"]
[Annotator "NA RC COMBH"]
[PlyCount "60"]
[EventDate "2022.06.05"]
[EventType "swiss"]
[EventRounds "9"]
[EventCountry "GER"]
[SourceTitle "playchess.com"]
[Source "ChessBase"]
[SourceQuality "1"]
[TimeControl "40/4500+30:900+30"]

1. e4 {[%emt 0:00:00]} e5 {[%emt 0:00:00]} 2. Nf3 {[%emt 0:00:00]} Nc6 {[%emt 0:00:00]} 3. Bb5 {[%emt 0:00:00]} a6 {[%emt 0:00:00]} 4. Ba4 {[%emt 0:00:00]} Nf6 {[%emt 0:00:00]} 5. d3 {[%emt 0:00:00]} d6 {[%emt 0:00:00]} 6. c4 {[%emt 0:00:00]} g6 {[%emt 0:00:00]} 7. Nc3 {[%emt 0:00:00]} Bg7 {[%emt 0:00:00]} 8. h3 {[%emt 0:00:00]} O-O {[%emt 0:00:00]} 9. Be3 {[%emt 0:00:00]} Bd7 {[%emt 0:00:00]} 10. O-O {[%emt 0:02:34]} Ne7 {[%emt 0:00:00]} 11. Bb3 {[%emt 0:12:05]} c5 {[%emt 0:00:00]} 12. Ba4 {[%emt 0:06:08]} Qa5 {[%emt 0:05:09]} 13. Bxd7 {[%emt 0:02:02]} Nxd7 {[%emt 0:00:04]} 14. Bg5 {[%emt 0:01:15]} Nc6 {[%emt 0:01:33]} 15. Nd5 {[%emt 0:05:48]} f6 {[%emt 0:01:58]} 16. Bd2 {[%emt 0:06:00]} Qd8 {[%emt 0:00:32]} 17. Rb1 {[%emt 0:09:35]} Nd4 {[%emt 0:03:53]} 18. Nxd4 {[%emt 0:03:55]} exd4 {[%emt 0:01:39]} 19. b4 {[%emt 0:07:32]} Rb8 {[%emt 0:12:15]} 20. Bf4 {[%emt 0:05:50]} Ne5 {[%emt 0:00:49]} 21. Bxe5 {[%emt 0:01:10]} fxe5 {[%emt 0:00:13]} 22. bxc5 {[%emt 0:01:15]} dxc5 {[%emt 0:00:11]} 23. Rb6 {[%emt 0:04:10]} Rf7 {[%emt 0:08:35]} 24. Qe2 {[%emt 0:05:36]} Bf8 {[%emt 0:01:10]} 25. Rfb1 {[%emt 0:00:40]} Bd6 {[%emt 0:01:57]} 26. Qg4 {[%emt 0:01:24]} Bf8 {[%emt 0:05:38]} 27. Qe6 {[%emt 0:01:51]} Bg7 {[%emt 0:01:36]} 28. Rxb7 {[%emt 0:01:34]} Rbxb7 {[%emt 0:00:50]} 29. Rxb7 {[%emt 0:00:08]} Qf8 {[%emt 0:00:54]} 30. Rc7 {[%emt 0:00:36]} h5 {[%emt 0:03:48]} 1-0

[Event "GER-ch Youth-U18w 2022"]
[Site "Willingen"]
[Date "2022.06.05"]
[Round "2.8"]
[White "Jacoby, Angelina"]
[Black "Schneider, Katharina"]
[Result "0-1"]
[ECO "D00"]
[WhiteElo "1535"]
[BlackElo "1810"]
[Annotator "NA RC COMBH"]
[PlyCount "143"]
[EventDate "2022.06.05"]
[EventType "swiss"]
[EventRounds "9"]
[EventCountry "GER"]
[SourceTitle "playchess.com"]
[Source "ChessBase"]
[SourceQuality "1"]
[TimeControl "40/4500+30:900+30"]

1. d4 {[%emt 0:00:00]} d5 {[%emt 0:00:00]} 2. Bf4 {[%emt 0:00:00]} e6 {[%emt 0:00:00]} 3. e3 {[%emt 0:00:00]} Bd6 {[%emt 0:00:00]} 4. Bg3 {[%emt 0:00:00]} Nf6 {[%emt 0:00:00]} 5. Nd2 {[%emt 0:00:00]} O-O {[%emt 0:00:00]} 6. Ngf3 {[%emt 0:00:00]} b6 {[%emt 0:00:00]} 7. Bd3 {[%emt 0:00:00]} c5 {[%emt 0:00:00]} 8. c3 {[%emt 0:00:00]} Ba6 {[%emt 0:00:00]} 9. Bxa6 {[%emt 0:01:27]} Nxa6 {[%emt 0:00:00]} 10. Ne5 {[%emt 0:08:42]} Nb8 {[%emt 0:00:00]} 11. Bh4 {[%emt 0:15:56]} Nbd7 {[%emt 0:00:00]} 12. Ndf3 {[%emt 0:10:16]} Qc7 {[%emt 0:00:00]} 13. Bg3 {[%emt 0:02:12]} Ne4 {[%emt 0:00:23]} 14. Nxd7 {[%emt 0:05:10]} Qxd7 {[%emt 0:02:15]} 15. Bxd6 {[%emt 0:02:37]} Qxd6 {[%emt 0:00:58]} 16. O-O {[%emt 0:00:47]} f6 {[%emt 0:02:25]} 17. Nd2 {[%emt 0:03:54]} Ng5 {[%emt 0:01:26]} 18. Nf3 {[%emt 0:01:08]} Nf7 {[%emt 0:00:39]} 19. Qd2 {[%emt 0:01:05]} Rad8 {[%emt 0:03:06]} 20. Rad1 {[%emt 0:00:43]} e5 {[%emt 0:01:02]} 21. dxe5 {[%emt 0:00:42]} Nxe5 {[%emt 0:00:12]} 22. Nxe5 {[%emt 0:02:47]} fxe5 {[%emt 0:00:14]} 23. Qc2 {[%emt 0:02:21]} Rf6 {[%emt 0:03:42]} 24. Rd2 {[%emt 0:06:36]} Qe6 {[%emt 0:04:28]} 25. Rfd1 {[%emt 0:01:41]} Rg6 {[%emt 0:01:51]} 26. Qd3 {[%emt 0:06:22]} Rd6 {[%emt 0:06:16]} 27. Qf1 {[%emt 0:02:36]} Rg4 {[%emt 0:06:04]} 28. a3 {[%emt 0:05:03]} Qf7 {[%emt 0:03:32]} 29. f3 {[%emt 0:01:02]} Rh4 {[%emt 0:00:47]} 30. Qf2 {[%emt 0:01:19]} Rhh6 {[%emt 0:02:26]} 31. Rd3 {[%emt 0:00:15]} Rd7 {[%emt 0:03:33]} 32. R3d2 {[%emt 0:00:15]} Rhd6 {[%emt 0:00:30]} 33. Qg3 {[%emt 0:00:27]} Qf6 {[%emt 0:00:56]} 34. Qf2 {[%emt 0:00:42]} h6 {[%emt 0:06:17]} 35. Qe2 {[%emt 0:00:25]} Kh8 {[%emt 0:00:34]} 36. Qf2 {[%emt 0:00:18]} a6 {[%emt 0:01:43]} 37. Qe2 {[%emt 0:00:15]} b5 {[%emt 0:00:24]} 38. Qd3 {[%emt 0:02:25]} d4 {[%emt 0:02:33]} 39. exd4 {[%emt 0:00:26]} exd4 {[%emt 0:00:51]} 40. cxd4 {[%emt 0:00:17]} Rxd4 {[%emt 0:01:51]} 41. Qe2 {[%emt 0:20:18]} c4 {[%emt 0:20:59]} 42. Qe3 {[%emt 0:00:00]} Rxd2 {[%emt 0:00:00]} 43. Rxd2 {[%emt 0:00:00]} Re7 {[%emt 0:00:00]} 44. Qf2 {[%emt 0:00:00]} Qg6 {[%emt 0:00:00]} 45. Rd1 {[%emt 0:00:00]} Qe8 {[%emt 0:00:00]} 46. Kf1 {[%emt 0:00:00]} Qc6 {[%emt 0:00:00]} 47. Qd2 {[%emt 0:00:00]} Kh7 {[%emt 0:00:00]} 48. h3 {[%emt 0:00:00]} Qb6 {[%emt 0:00:00]} 49. Qd4 {[%emt 0:00:00]} Qe6 {[%emt 0:00:00]} 50. Qd2 {[%emt 0:00:00]} Qe3 {[%emt 0:00:00]} 51. Qc2+ {[%emt 0:00:00]} g6 {[%emt 0:00:00]} 52. Rc1 {[%emt 0:00:00]} Rd7 {[%emt 0:00:00]} 53. Rd1 {[%emt 0:00:27]} Re7 {[%emt 0:00:00]} 54. Rc1 {[%emt 0:00:12]} h5 {[%emt 0:00:00]} 55. Rd1 {[%emt 0:00:32]} Qf4 {[%emt 0:00:00]} 56. Qc3 {[%emt 0:02:29]} Qh2 {[%emt 0:00:00]} 57. Kf2 {[%emt 0:00:38]} h4 {[%emt 0:00:04]} 58. Rd8 {[%emt 0:01:26]} Qg3+ {[%emt 0:00:23]} 59. Kf1 {[%emt 0:00:12]} Qe5 {[%emt 0:00:45]} 60. Qxe5 {[%emt 0:00:36]} Rxe5 {[%emt 0:00:04]} 61. Rd2 {[%emt 0:00:55]} Re3 {[%emt 0:01:21]} 62. Rc2 {[%emt 0:00:26]} Rb3 {[%emt 0:00:58]} 63. Ke1 {[%emt 0:01:14]} Kh6 {[%emt 0:02:56]} 64. Kd2 {[%emt 0:00:44]} Kg5 {[%emt 0:00:24]} 65. Kc1 {[%emt 0:00:33]} Kf4 {[%emt 0:00:31]} 66. Kd2 {[%emt 0:00:32]} Rd3+ {[%emt 0:01:08]} 67. Ke2 {[%emt 0:00:14]} Kg3 {[%emt 0:02:13]} 68. Ke1 {[%emt 0:00:32]} g5 {[%emt 0:04:06]} 69. Kf1 {[%emt 0:00:40]} Rd1+ {[%emt 0:02:33]} 70. Ke2 {[%emt 0:00:10]} Rg1 {[%emt 0:00:11]} 71. Ke3 {[%emt 0:00:42]} Rxg2 {[%emt 0:00:11]} 72. Kd4 0-1

[Event "GER-ch Youth-U18w 2022"]
[Site "Willingen"]
[Date "2022.06.05"]
[Round "2.9"]
[White "Cheredzhiyska, Iva"]
[Black "Mueller, Sophie Charlotte"]
[Result "1-0"]
[ECO "C41"]
[WhiteElo "1696"]
[BlackElo "1509"]
[Annotator "NA RC COMBH"]
[PlyCount "91"]
[EventDate "2022.06.05"]
[EventType "swiss"]
[EventRounds "9"]
[EventCountry "GER"]
[SourceTitle "playchess.com"]
[Source "ChessBase"]
[SourceQuality "1"]
[TimeControl "40/4500+30:900+30"]

1. e4 {[%emt 0:00:00]} e5 {[%emt 0:00:00]} 2. Nf3 {[%emt 0:00:00]} d6 {[%emt 0:00:00]} 3. d4 {[%emt 0:00:00]} exd4 {[%emt 0:00:00]} 4. Nxd4 {[%emt 0:00:00]} Nf6 {[%emt 0:00:00]} 5. Nc3 {[%emt 0:00:00]} Be7 {[%emt 0:00:00]} 6. Be2 {[%emt 0:00:00]} O-O {[%emt 0:00:00]} 7. O-O {[%emt 0:00:00]} c5 {[%emt 0:00:00]} 8. Nb3 {[%emt 0:00:00]} a6 {[%emt 0:00:00]} 9. a4 {[%emt 0:00:00]} Re8 {[%emt 0:00:00]} 10. f3 {[%emt 0:01:22]} Nc6 {[%emt 0:05:47]} 11. Bc4 {[%emt 0:10:46]} Be6 {[%emt 0:11:50]} 12. Nd5 {[%emt 0:05:11]} Ne5 {[%emt 0:06:50]} 13. Qe2 {[%emt 0:06:26]} Nxc4 {[%emt 0:11:43]} 14. Qxc4 {[%emt 0:00:21]} Nxd5 {[%emt 0:00:21]} 15. exd5 {[%emt 0:00:16]} Bd7 {[%emt 0:04:25]} 16. Qf4 {[%emt 0:15:06]} b5 {[%emt 0:03:35]} 17. Nd2 {[%emt 0:02:25]} Qb6 {[%emt 0:13:57]} 18. a5 {[%emt 0:02:38]} Qb7 {[%emt 0:02:14]} 19. Ne4 {[%emt 0:08:36]} Qxd5 {[%emt 0:03:40]} 20. Be3 {[%emt 0:04:29]} Qc6 {[%emt 0:08:25]} 21. Rae1 {[%emt 0:09:50]} d5 {[%emt 0:02:02]} 22. Nf2 {[%emt 0:02:53]} Qd6 {[%emt 0:03:21]} 23. Nd3 {[%emt 0:03:56]} d4 {[%emt 0:00:59]} 24. Bd2 {[%emt 0:02:10]} Be6 {[%emt 0:01:30]} 25. Re2 {[%emt 0:03:03]} h6 {[%emt 0:00:44]} 26. Rfe1 {[%emt 0:01:42]} g5 {[%emt 0:00:46]} 27. Qe4 {[%emt 0:02:14]} Ra7 {[%emt 0:02:33]} 28. f4 {[%emt 0:01:29]} g4 {[%emt 0:01:24]} 29. f5 {[%emt 0:01:50]} Bxf5 {[%emt 0:02:57]} 30. Qxf5 {[%emt 0:00:07]} Kh8 {[%emt 0:00:47]} 31. Bf4 {[%emt 0:01:52]} Qc6 {[%emt 0:00:39]} 32. Ne5 {[%emt 0:00:25]} Qf6 {[%emt 0:00:29]} 33. Nxf7+ {[%emt 0:00:12]} Kg8 {[%emt 0:00:21]} 34. Nxh6+ {[%emt 0:00:08]} Kf8 {[%emt 0:00:25]} 35. Qxf6+ {[%emt 0:00:16]} Bxf6 {[%emt 0:00:03]} 36. Rxe8+ {[%emt 0:00:11]} Kg7 {[%emt 0:00:18]} 37. Nxg4 {[%emt 0:00:14]} c4 {[%emt 0:00:35]} 38. Nxf6 {[%emt 0:00:16]} Kxf6 {[%emt 0:00:01]} 39. Be5+ {[%emt 0:00:41]} Kf7 {[%emt 0:00:01]} 40. Bxd4 {[%emt 0:00:10]} Rd7 {[%emt 0:00:13]} 41. c3 {[%emt 0:15:30]} b4 {[%emt 0:15:13]} 42. h4 {[%emt 0:00:47]} bxc3 {[%emt 0:00:10]} 43. Bxc3 {[%emt 0:00:20]} Rd5 {[%emt 0:00:42]} 44. R1e7+ {[%emt 0:00:29]} Kg6 {[%emt 0:00:13]} 45. Rg7+ {[%emt 0:00:12]} Kf5 {[%emt 0:00:07]} 46. Rg5+ {[%emt 0:00:28]} 1-0